fUSD/lending_fUSD_20240923
["ID","MTS","AMOUNT","RATE_DAILY","PERIOD"]
[338912950,1727067037980,-521.5996,0.00012818,2]
[338912952,1727067037992,-1782.82812015,0.00012818,2]
[338912954,1727067038002,-450.2956,0.00012822,2]
[338912956,1727067038011,-150.0,0.00012835,2]
[338912958,1727067038021,-150.0,0.00012839,2]
[338912960,1727067038033,-150.0,0.00012852,2]
[338912962,1727067038042,-150.0,0.00012856,2]
[338912964,1727067038051,-1500.0,0.00012857,2]
[338912967,1727067038062,-150.0,0.0001286,2]
[338912969,1727067038072,-150.0,0.00012873,2]
[338912971,1727067038082,-150.0,0.00012874,2]
[338912973,1727067038091,-1500.0,0.00012875,2]
[338912975,1727067038100,-227.95304164,0.00012884,2]
[338913008,1727067039391,-250.0,0.00012814,2]
[338913009,1727067039400,-3.44497898,0.00012884,2]
[338913010,1727067039412,-381.41197938,0.00012884,2]
[338913011,1727067039422,-175.45379143,0.00012884,2]
[338913012,1727067039434,-12.7973241,0.00012884,2]
[338913013,1727067039641,-587.2429991,0.00012886,2]
[338913014,1727067039654,-1138.4286009,0.00012886,2]
[338913015,1727067039663,-1000.0,0.00012886,2]
[338913016,1727067039674,-165.28887666,0.0001289,2]
[338913017,1727067039686,-324.99262433,0.0001289,2]
[338913018,1727067039696,-1154.908,0.0001289,2]
[338913019,1727067039706,-1173.4558,0.0001289,2]
[338913020,1727067039715,-167.6366,0.0001289,2]
[338913021,1727067039724,-789.7346,0.0001289,2]
[338913022,1727067039733,-165.28887662,0.00012891,2]
[338913023,1727067039742,-165.28887662,0.00012892,2]
[338913024,1727067039751,-179.99,0.00012893,2]
[338913025,1727067039760,-165.28887662,0.00012893,2]
[338913026,1727067039771,-165.28887662,0.00012894,2]
[338913027,1727067039783,-150.0,0.00012895,2]
[338913028,1727067039792,-165.28887662,0.00012896,2]
[338913029,1727067039801,-2349.546953,0.00012896,2]
[338913030,1727067039810,-184.0898548,0.00012896,2]
[338913031,1727067039821,-165.28887662,0.00012897,2]
[338913032,1727067039831,-150.43465659,0.00012897,2]
[338913033,1727067039840,-165.28887662,0.00012898,2]
[338913034,1727067039849,-165.28887662,0.00012899,2]
[338913035,1727067039858,-845.26,0.000129,2]
[338913036,1727067039868,-1288.5387,0.000129,2]
[338913037,1727067039878,-213.50081201,0.000129,2]
[338913038,1727067039888,-214.0,0.000129,2]
[338913039,1727067039898,-156.29027241,0.000129,2]
[338913040,1727067039907,-156.29027241,0.000129,2]
[338913041,1727067039916,-156.29027241,0.000129,2]
[338913042,1727067039925,-156.29027241,0.000129,2]
[338913043,1727067039936,-156.29027241,0.000129,2]
[338913044,1727067039947,-156.29027241,0.000129,2]
[338913045,1727067039957,-156.29027241,0.000129,2]
[338913046,1727067039966,-156.29027241,0.000129,2]
[338913047,1727067039975,-156.29027241,0.000129,2]
[338913048,1727067039985,-156.29027241,0.000129,2]
[338913049,1727067039994,-156.29027241,0.000129,2]
[338913050,1727067040003,-156.29027241,0.000129,2]
[338913051,1727067040013,-156.29027241,0.000129,2]
[338913052,1727067040022,-156.29027241,0.000129,2]
[338913053,1727067040031,-156.29027241,0.000129,2]
[338913054,1727067040041,-156.29027241,0.000129,2]
[338913055,1727067040051,-156.29027241,0.000129,2]
[338913056,1727067040060,-156.29027241,0.000129,2]
[338913057,1727067040070,-156.29027241,0.000129,2]
[338913058,1727067040079,-156.79,0.000129,2]
[338913059,1727067040090,-180.91309629,0.000129,2]
[338913060,1727067040100,-180.91309629,0.000129,2]
[338913061,1727067040110,-180.91309629,0.000129,2]
[338913062,1727067040119,-180.91309629,0.000129,2]
[338913063,1727067040128,-180.91309629,0.000129,2]
[338913064,1727067040138,-180.91309629,0.000129,2]
[338913065,1727067040147,-180.91309629,0.000129,2]
[338913066,1727067040156,-180.91309629,0.000129,2]
[338913067,1727067040165,-180.91309629,0.000129,2]
[338913068,1727067040176,-180.91309629,0.000129,2]
[338913069,1727067040186,-180.91309629,0.000129,2]
[338913070,1727067040196,-180.91309629,0.000129,2]
[338913071,1727067040208,-180.91309629,0.000129,2]
[338913072,1727067040219,-180.91309629,0.000129,2]
[338913073,1727067040228,-180.91309629,0.000129,2]
[338913074,1727067040237,-180.91309629,0.000129,2]
[338913075,1727067040247,-180.91309629,0.000129,2]
[338913076,1727067040257,-180.91309629,0.000129,2]
[338913077,1727067040266,-180.91309629,0.000129,2]
[338913078,1727067040276,-181.41,0.000129,2]
[338913079,1727067040287,-165.28887662,0.000129,2]
[338913080,1727067040297,-150.0,0.00012902,2]
[338913081,1727067040306,-1500.0,0.0001294,2]
[338913082,1727067040315,-150.0,0.00012958,2]
[338913083,1727067040325,-150.0,0.00012963,2]
[338913084,1727067040334,-500.0,0.00012973,2]
[338913085,1727067040343,-500.0,0.00012973,2]
[338913086,1727067040352,-502.08720999,0.00012973,2]
[338913087,1727067040361,-502.09940959,0.00012973,2]
[338913088,1727067040371,-4535.05676957,0.00012974,2]
[338913089,1727067040380,-231.365812,0.00012975,2]
[338913090,1727067040389,-183.740416,0.00012975,2]
[338913091,1727067040398,-585.366116,0.00012975,2]
[338913092,1727067040407,-289.87771,0.00012975,2]
[338913093,1727067040417,-12112.297256,0.00012975,2]
[338913094,1727067040426,-192.0,0.0001298,2]
[338913095,1727067040435,-163.11,0.0001298,2]
[338913096,1727067040445,-767.4823212,0.00012981,2]
[338913097,1727067040455,-1216.2755579,0.00012984,2]
[338913098,1727067040465,-4676.012367,0.00012984,2]
[338913099,1727067040474,-3772.9960544,0.00012984,2]
[338913100,1727067040483,-223.16983,0.00012984,2]
[338913101,1727067040492,-166.53490925,0.00012988,2]
[338913102,1727067040502,-412261.07646779,0.0001299,3]
[338913103,1727067040511,-767.4823212,0.0001299,2]
[338913104,1727067040520,-767.4823212,0.0001299,2]
[338913105,1727067040530,-163.11,0.0001299,2]
[338913106,1727067040541,-163.11,0.0001299,2]
[338913107,1727067040551,-163.11,0.0001299,2]
[338913108,1727067040560,-163.11,0.0001299,2]
[338913109,1727067040569,-163.11,0.0001299,2]
[338913110,1727067040578,-1591.1502907,0.00012991,2]
[338913111,1727067040587,-1966.0250236,0.00012991,2]
[338913112,1727067040597,-2340.8997565,0.00012991,2]
[338913113,1727067040606,-2715.7744893,0.00012991,2]
[338913114,1727067040615,-3090.6492222,0.00012991,2]
[338913115,1727067040624,-5329.0895395,0.00012991,2]
[338913116,1727067040635,-5982.166712,0.00012991,2]
[338913117,1727067040646,-6635.2438845,0.00012991,2]
[338913118,1727067040656,-7288.321057,0.00012991,2]
[338913119,1727067040665,-4831.46218434,0.00012991,2]
[338913120,1727067040678,-2557.94,0.00012991,2]
[338913121,1727067040689,-551.99604506,0.00012991,2]
[338913122,1727067040699,-4894.8966943,0.00012991,2]
[338913123,1727067040708,-1659.28629726,0.00012991,2]
[338913124,1727067040720,-1730.84596,0.00012991,2]
[338913125,1727067040731,-622.3913,0.00012991,2]
[338913126,1727067040742,-2004.27377694,0.00012991,2]
[338913127,1727067040751,-3369.3194111,0.00012991,2]
[338913128,1727067040763,-3769.378563,0.00012991,2]
[338913129,1727067040773,-8260.598614,0.00012991,2]
[338913130,1727067040782,-9382.4992539,0.00012991,2]
[338913131,1727067040799,-223.16983,0.00012991,2]
[338913132,1727067040809,-223.16983,0.00012991,2]
[338913133,1727067040819,-223.16983,0.00012991,2]
[338913134,1727067040829,-223.16983,0.00012991,2]
[338913135,1727067040838,-223.16983,0.00012991,2]
[338913136,1727067040847,-637.39693888,0.00012993,2]
[338913137,1727067040857,-500.0,0.00012995,2]
[338913138,1727067040868,-500.0,0.00012995,2]
[338913139,1727067040877,-500.0,0.00012995,2]
[338913140,1727067040886,-500.0,0.00012995,2]
[338913141,1727067040896,-507.07596464,0.00012995,2]
[338913142,1727067040905,-500.0,0.00012995,2]
[338913143,1727067040915,-237.64962491,0.00012995,2]
[338913144,1727067040925,-500.0,0.00012995,2]
[338913145,1727067040935,-500.0,0.00012995,2]
[338913146,1727067040945,-500.0,0.00012995,2]
[338913147,1727067040954,-500.0,0.00012995,2]
[338913148,1727067040964,-500.0,0.00012995,2]
[338913149,1727067040973,-500.0,0.00012995,2]
[338913150,1727067040983,-500.0,0.00012995,2]
[338913151,1727067040992,-500.0,0.00012995,2]
[338913152,1727067041002,-30.42457118,0.00012995,2]
[338913153,1727067041014,-495.29069145,0.00012995,2]
[338913154,1727067041023,-500.0,0.00012995,2]
[338913155,1727067041033,-500.0,0.00012995,2]
[338913156,1727067041045,-89.43662804,0.00012996,2]
[338913157,1727067041272,-7312.89457521,0.00012996,2]
[338913160,1727067042449,-3563.9999998,0.00012996,2]
[338913161,1727067042555,-6423.29288549,0.00012996,2]
[338913162,1727067042610,-1637.97586212,0.00012996,2]
[338913170,1727067045435,-1597.71353979,0.00012996,2]
[338913171,1727067045546,-9713.84781612,0.00012996,2]
[338913183,1727067073121,600.0,9.567e-05,2]
[338913184,1727067075673,600.0,0.00010937,2]
[338913185,1727067096213,600.0,9.567e-05,2]
[338913186,1727067097784,600.0,0.00010937,2]
[338913187,1727067102542,23900.0,0.00011994,2]
[338913189,1727067258444,809.09060916,0.00012,2]
[338913190,1727067267065,196.07,0.00011926,2]
[338913191,1727067268592,260.29,0.00011926,2]
[338913192,1727067274450,572.22,9.589e-05,2]
[338913193,1727067368738,1050.0,0.00011,2]
[338913194,1727067378045,659.78,9.996e-05,2]
[338913204,1727067484769,161.59,0.00010959,2]
[338913205,1727067499573,250.0,0.00011901,2]
[338913206,1727067513156,250.0,0.00011901,2]
[338913208,1727067700872,500.0,0.00011912,2]
[338913209,1727067715057,1000.0,0.00011912,2]
[338913210,1727067797166,196.07,0.00011914,2]
[338913211,1727067806408,312.74,0.00011914,2]
[338913213,1727067835136,7275.14,0.00011914,2]
[338913216,1727067912876,476.85,9.589e-05,2]
[338913217,1727067919698,639.91,0.00010011,2]
[338913219,1727068035510,197.58,0.00010959,2]
[338913225,1727068131636,250.0,0.00011925,2]
[338913250,1727068171821,250.0,0.00011914,2]
[338913255,1727068231553,-476.85,0.00012055,2]
[338913256,1727068231562,-542.39,0.000122,2]
[338913257,1727068231573,-639.91,0.00012275,2]
[338913258,1727068231583,-1688.49236569,0.000123,2]
[338913259,1727068231609,-4917.54734119,0.000123,2]
[338913260,1727068231721,-6937.10524593,0.000123,2]
[338913261,1727068231732,-4783.18391556,0.000123,2]
[338913262,1727068231832,-10178.46245821,0.000123,2]
[338913263,1727068231844,-5725.2620811,0.000123,2]
[338913264,1727068231856,-476.09994262,0.000123,2]
[338913265,1727068231867,-7110.12547744,0.000123,2]
[338913266,1727068231889,-2869.03344757,0.000123,2]
[338913267,1727068237716,-3802.38214559,0.000123,2]
[338913268,1727068237832,-95584.3055791,0.000123,2]
[338913269,1727068237841,-600.0,0.00012307,2]
[338913270,1727068237853,-600.0,0.00012307,2]
[338913271,1727068237864,-300.0,0.00012499,2]
[338913272,1727068237873,-150.0,0.00012599,2]
[338913273,1727068237882,-11511.0,0.000126,3]
[338913274,1727068237892,-150.0,0.00012731,2]
[338913275,1727068237903,-150.0,0.00012737,2]
[338913276,1727068237914,-150.0,0.00012767,2]
[338913277,1727068237926,-150.99,0.00012796,2]
[338913278,1727068237939,-499.99,0.00012796,2]
[338913279,1727068237949,-697.69,0.00012796,2]
[338913280,1727068237960,-999.99,0.00012796,2]
[338913281,1727068237970,-1500.0,0.00012804,2]
[338913282,1727068237980,-170.701,0.00012814,2]
[338913283,1727068237991,-150.851,0.00012814,2]
[338913284,1727068238002,-727.827,0.00012814,2]
[338913285,1727068238014,-322.37606901,0.00012819,2]
[338913286,1727068238026,-150.0,0.00012837,2]
[338913287,1727068238037,-150.0,0.00012841,2]
[338913288,1727068238049,-11782.27312344,0.0001287,2]
[338913289,1727068238060,-150.0,0.00012887,2]
[338913290,1727068238072,-500.0,0.00012889,2]
[338913291,1727068238083,-200.0,0.00012889,2]
[338913292,1727068238094,-500.0,0.00012891,2]
[338913293,1727068238105,-3960.9174,0.00012896,2]
[338913294,1727068238114,-169.90180674,0.00012896,2]
[338913295,1727068238124,-325.76792471,0.00012896,2]
[338913296,1727068238133,-490.248,0.00012899,2]
[338913297,1727068238143,-1000.0,0.000129,2]
[338913298,1727068238153,-1000.0,0.000129,2]
[338913299,1727068238162,-1000.0,0.000129,2]
[338913300,1727068238171,-890.0,0.000129,2]
[338913301,1727068238181,-1000.0,0.000129,3]
[338913302,1727068238192,-1000.0,0.000129,3]
[338913303,1727068238202,-1000.0,0.000129,3]
[338913304,1727068238213,-1000.0,0.000129,2]
[338913305,1727068238223,-1000.0,0.000129,2]
[338913306,1727068238232,-1000.0,0.000129,2]
[338913307,1727068238242,-981.0,0.000129,3]
[338913308,1727068238252,-1000.0,0.000129,2]
[338913309,1727068238262,-674.0,0.000129,3]
[338913310,1727068238275,-1000.0,0.000129,2]
[338913311,1727068238285,-1000.0,0.000129,3]
[338913312,1727068238295,-1000.0,0.000129,2]
[338913313,1727068238304,-170.75073081,0.000129,2]
[338913314,1727068238315,-171.25,0.000129,2]
[338913315,1727068238326,-156.28402581,0.000129,2]
[338913316,1727068238338,-156.28402581,0.000129,2]
[338913317,1727068238348,-156.28402581,0.000129,2]
[338913318,1727068238358,-156.28402581,0.000129,2]
[338913319,1727068238368,-156.28402581,0.000129,2]
[338913320,1727068238377,-156.28402581,0.000129,2]
[338913321,1727068238387,-156.28402581,0.000129,2]
[338913322,1727068238397,-156.28402581,0.000129,2]
[338913323,1727068238407,-156.28402581,0.000129,2]
[338913324,1727068238416,-156.28402581,0.000129,2]
[338913325,1727068238426,-156.28402581,0.000129,2]
[338913326,1727068238435,-156.28402581,0.000129,2]
[338913327,1727068238445,-156.28402581,0.000129,2]
[338913328,1727068238455,-156.28402581,0.000129,2]
[338913329,1727068238464,-156.28402581,0.000129,2]
[338913330,1727068238474,-156.78,0.000129,2]
[338913331,1727068238483,-152.34264,0.000129,2]
[338913332,1727068238492,-152.34264,0.000129,2]
[338913333,1727068238502,-152.34264,0.000129,2]
[338913334,1727068238511,-152.34264,0.000129,2]
[338913335,1727068238520,-152.34264,0.000129,2]
[338913336,1727068238530,-152.34264,0.000129,2]
[338913337,1727068238539,-152.34264,0.000129,2]
[338913338,1727068238548,-152.34264,0.000129,2]
[338913339,1727068238557,-152.34264,0.000129,2]
[338913340,1727068238566,-152.34264,0.000129,2]
[338913341,1727068238575,-152.34264,0.000129,2]
[338913342,1727068238584,-152.34264,0.000129,2]
[338913343,1727068238594,-152.34264,0.000129,2]
[338913344,1727068238605,-152.34264,0.000129,2]
[338913345,1727068238614,-152.34264,0.000129,2]
[338913346,1727068238623,-152.34264,0.000129,2]
[338913347,1727068238632,-152.34264,0.000129,2]
[338913348,1727068238642,-152.34264,0.000129,2]
[338913349,1727068238652,-152.84,0.000129,2]
[338913350,1727068238661,-150.0,0.00012906,2]
[338913351,1727068238672,-150.0,0.00012912,2]
[338913352,1727068238681,-150.0,0.00012922,2]
[338913353,1727068238690,-150.0,0.00012923,2]
[338913354,1727068238700,-1500.0,0.00012939,2]
[338913355,1727068238709,-150.0,0.00012946,2]
[338913356,1727068238719,-1500.0,0.00012946,2]
[338913357,1727068238728,-277.66516976,0.00012951,2]
[338913358,1727068238742,-150.0,0.00012963,2]
[338913359,1727068238751,-500.0,0.00012973,2]
[338913360,1727068238760,-400.09061047,0.00012973,2]
[338913361,1727068238769,-500.0,0.00012973,2]
[338913362,1727068238779,-150.0,0.00012978,2]
[338913363,1727068238789,-191.8705803,0.00012986,2]
[338913364,1727068238798,-157.29,0.00012986,2]
[338913365,1727068238808,-191.8705803,0.0001299,2]
[338913366,1727068238819,-150.01,0.00012995,2]
[338913367,1727068238830,-500.0,0.00012995,2]
[338913368,1727068238840,-500.0,0.00012995,2]
[338913369,1727068238852,-500.0,0.00012995,2]
[338913370,1727068238864,-500.0,0.00012995,2]
[338913371,1727068238874,-572.20825668,0.00012995,2]
[338913372,1727068238883,-48803.11069228,0.00012996,2]
[338913373,1727068238892,-339695.47393101,0.00012996,5]
[338913374,1727068238908,-349.87799986,0.00012996,5]
[338913375,1727068238919,-569.5689955,0.00012996,5]
[338913376,1727068238931,-1503.9378076,0.00012996,5]
[338913377,1727068238951,-19196.56972,0.00012996,5]
[338913378,1727068238961,-258.696003,0.00012996,5]
[338913379,1727068239730,-1333.56179996,0.00012996,5]
[338913380,1727068239786,-538.0,0.00012996,5]
[338913381,1727068239899,-2359.41485305,0.00012996,5]
[338913385,1727068242851,-2756.60944737,0.00012996,5]
[338913386,1727068242863,-374.72962927,0.00012996,5]
[338913387,1727068242919,-1280.14,0.00012996,5]
[338913394,1727068245568,-200.0,0.0001249,2]
[338913395,1727068245578,-908.0,0.000129,2]
[338913396,1727068245588,-3583.18203615,0.00012996,5]
[338913397,1727068245624,-300.0,0.00012996,5]
[338913398,1727068282257,500.0,0.00010663,2]
[338913399,1727068327644,500.0,0.00010663,2]
[338913403,1727068466199,589.03,0.00010187,2]
[338913404,1727068466724,500.0,0.00010663,2]
[338913405,1727068523570,-500.0,0.00012033,2]
[338913406,1727068523601,-500.0,0.00012033,2]
[338913407,1727068545702,150.0,0.00021,60]
[338913408,1727068546579,150.0,0.00021,60]
[338913409,1727068547314,150.0,0.00021,60]
[338913410,1727068548138,150.0,0.00021,60]
[338913411,1727068548995,150.0,0.00021,60]
[338913412,1727068549862,150.0,0.00021,60]
[338913413,1727068577318,2114.37,0.00021,60]
[338913414,1727068582394,500.0,0.00010663,2]
[338913415,1727068583966,500.0,0.00012033,2]
[338913416,1727068584116,500.0,0.00010663,2]
[338913417,1727068585708,500.0,0.00012033,2]
[338913418,1727068605022,500.0,0.00021,60]
[338913419,1727068613813,474.16,0.0001195,2]
[338913420,1727068624155,2000.0,0.00012,2]
[338913421,1727068646963,250.0,0.00011946,2]
[338913422,1727068682387,317.9,9.589e-05,2]
[338913423,1727068700860,290.89083196,0.00012,2]
[338913425,1727068822464,840.0,0.00011922,2]
[338913428,1727068981004,250.0,0.00011928,2]
[338913431,1727069030024,572.69,0.00010041,2]
[338913432,1727069104773,150.0,0.00011688,2]
[338913433,1727069113794,150.0,0.00011688,2]
[338913434,1727069179179,1050.0,0.00011,2]
[338913435,1727069200361,208.23,0.00011914,2]
[338913463,1727069297924,250.0,0.00011909,2]
[338913464,1727069310362,196.12916804,0.00011998,2]
[338913465,1727069310385,3476.3382275,0.00011998,2]
[338913466,1727069341678,155.06,0.00010959,2]
[338913516,1727069382514,264.91,9.589e-05,2]
[338913517,1727069393626,328.0,0.0001191,2]
[338913518,1727069420195,300.0,0.00012,4]
[338913519,1727069427319,500.0,0.00010663,2]
[338913534,1727069431783,-500.0,0.00012033,2]
[338913535,1727069431794,-264.91,0.00012055,2]
[338913536,1727069431804,-6817.09786701,0.0001208,2]
[338913537,1727069431814,-600.0,0.000121,4]
[338913538,1727069431824,-300.0,0.00012127,2]
[338913539,1727069431834,-10000.0,0.00012128,2]
[338913540,1727069431847,-553.46,0.000122,2]
[338913541,1727069431858,-1000.0,0.000122,4]
[338913542,1727069431868,-1300.0,0.000123,4]
[338913543,1727069431878,-572.69,0.00012305,2]
[338913544,1727069431889,-150.0,0.00012337,2]
[338913545,1727069431899,-1700.0,0.000124,4]
[338913546,1727069431909,-2000.0,0.000125,2]
[338913547,1727069431919,-300.0,0.000125,4]
[338913548,1727069431929,-368.50238202,0.0001268,2]
[338913549,1727069431939,-4562.67,0.0001268,2]
[338913550,1727069431949,-2000.0,0.000127,2]
[338913551,1727069431958,-4185.90403136,0.000128,2]
[338913552,1727069431969,-150.99,0.00012804,2]
[338913553,1727069431979,-499.99,0.00012806,2]
[338913554,1727069431990,-150.99,0.00012806,2]
[338913555,1727069432000,-150.0,0.00012813,2]
[338913556,1727069432010,-5908.618,0.00012814,2]
[338913557,1727069432020,-155.464,0.00012814,2]
[338913558,1727069432030,-1147.0,0.00012814,2]
[338913559,1727069432040,-13555.351,0.00012814,2]
[338913560,1727069432051,-11782.27312344,0.0001287,2]
[338913561,1727069432061,-467.156,0.00012884,2]
[338913562,1727069432070,-169.964,0.00012884,2]
[338913563,1727069432080,-500.0,0.00012892,2]
[338913564,1727069432090,-1000.0,0.00012896,2]
[338913565,1727069432099,-6703.99000948,0.00012896,2]
[338913566,1727069432109,-6703.99000939,0.00012896,2]
[338913567,1727069432118,-6300.0223825,0.00012897,2]
[338913568,1727069432135,-403.96762689,0.00012897,2]
[338913569,1727069432144,-6703.99000939,0.00012897,2]
[338913570,1727069432153,-6703.99000939,0.00012898,2]
[338913571,1727069432163,-6703.99000939,0.00012898,2]
[338913572,1727069432174,-6703.99000939,0.00012899,2]
[338913573,1727069432184,-326.5432251,0.00012899,2]
[338913574,1727069432194,-6703.99000939,0.00012899,2]
[338913575,1727069432203,-6703.99000939,0.000129,2]
[338913576,1727069432213,-150.43465659,0.000129,2]
[338913577,1727069432222,-1995.6,0.000129,2]
[338913578,1727069432232,-6703.99000939,0.000129,2]
[338913579,1727069432241,-273.6,0.000129,2]
[338913580,1727069432251,-153.87202581,0.000129,2]
[338913581,1727069432260,-153.87202581,0.000129,2]
[338913582,1727069432269,-153.87202581,0.000129,2]
[338913583,1727069432279,-153.87202581,0.000129,2]
[338913584,1727069432289,-153.87202581,0.000129,2]
[338913585,1727069432298,-153.87202581,0.000129,2]
[338913586,1727069432308,-153.87202581,0.000129,2]
[338913587,1727069432318,-153.87202581,0.000129,2]
[338913588,1727069432328,-153.87202581,0.000129,2]
[338913589,1727069432337,-153.87202581,0.000129,2]
[338913590,1727069432346,-153.87202581,0.000129,2]
[338913591,1727069432355,-153.87202581,0.000129,2]
[338913592,1727069432365,-154.37,0.000129,2]
[338913593,1727069432374,-174.69193223,0.000129,2]
[338913594,1727069432384,-174.69193223,0.000129,2]
[338913595,1727069432394,-174.69193223,0.000129,2]
[338913596,1727069432403,-174.69193223,0.000129,2]
[338913597,1727069432412,-174.69193223,0.000129,2]
[338913598,1727069432426,-174.69193223,0.000129,2]
[338913599,1727069432435,-174.69193223,0.000129,2]
[338913600,1727069432445,-174.69193223,0.000129,2]
[338913601,1727069432454,-174.69193223,0.000129,2]
[338913602,1727069432464,-174.69193223,0.000129,2]
[338913603,1727069432473,-174.69193223,0.000129,2]
[338913604,1727069432483,-174.69193223,0.000129,2]
[338913605,1727069432492,-174.69193223,0.000129,2]
[338913606,1727069432501,-174.69193223,0.000129,2]
[338913607,1727069432511,-174.69193223,0.000129,2]
[338913608,1727069432520,-174.69193223,0.000129,2]
[338913609,1727069432530,-174.69193223,0.000129,2]
[338913610,1727069432539,-174.69193223,0.000129,2]
[338913611,1727069432548,-174.69193223,0.000129,2]
[338913612,1727069432558,-175.19,0.000129,2]
[338913613,1727069432567,-150.0,0.00012915,2]
[338913614,1727069432577,-500.0,0.0001292,2]
[338913615,1727069432587,-500.0,0.0001292,2]
[338913616,1727069432597,-500.0,0.0001292,2]
[338913617,1727069432606,-500.0,0.0001292,2]
[338913618,1727069432616,-500.0,0.0001292,2]
[338913619,1727069432625,-500.0,0.0001292,2]
[338913620,1727069432635,-500.0,0.0001292,2]
[338913621,1727069432645,-500.0,0.0001292,2]
[338913622,1727069432654,-500.0,0.0001292,2]
[338913623,1727069432663,-500.0,0.0001292,2]
[338913624,1727069432675,-500.0,0.0001292,2]
[338913625,1727069432684,-500.0,0.0001292,2]
[338913626,1727069432693,-500.0,0.0001292,2]
[338913627,1727069432703,-500.0,0.0001292,2]
[338913628,1727069432713,-500.0,0.0001292,2]
[338913629,1727069432722,-500.0,0.0001292,2]
[338913630,1727069432732,-500.0,0.0001292,2]
[338913631,1727069432741,-500.0,0.0001292,2]
[338913632,1727069432751,-508.58,0.0001292,2]
[338913633,1727069432760,-500.0,0.0001292,2]
[338913634,1727069432999,-500.0,0.0001292,2]
[338913635,1727069433008,-500.0,0.0001292,2]
[338913636,1727069433018,-500.0,0.0001292,2]
[338913637,1727069433027,-500.0,0.0001292,2]
[338913638,1727069433036,-500.0,0.0001292,2]
[338913639,1727069433045,-500.0,0.0001292,2]
[338913640,1727069433056,-500.0,0.0001292,2]
[338913641,1727069433065,-521.64,0.0001292,2]
[338913642,1727069433074,-152.7750292,0.0001295,2]
[338913643,1727069433083,-1202.07742239,0.0001297,2]
[338913644,1727069433093,-500.0,0.00012973,2]
[338913645,1727069433103,-500.0,0.00012973,2]
[338913646,1727069433112,-161.51471724,0.00012986,2]
[338913647,1727069433122,-152.34,0.00012989,2]
[338913648,1727069433132,-271.8168445,0.0001299,2]
[338913649,1727069433141,-718.915771,0.0001299,2]
[338913650,1727069433151,-152.34,0.0001299,2]
[338913651,1727069433160,-312.1942452,0.00012991,2]
[338913652,1727069433171,-352.571646,0.00012991,2]
[338913653,1727069433180,-392.9490467,0.00012991,2]
[338913654,1727069433188,-433.3264474,0.00012991,2]
[338913655,1727069433197,-473.7038481,0.00012991,2]
[338913656,1727069433206,-648.4461773,0.00012991,2]
[338913657,1727069433215,-577.9765837,0.00012991,2]
[338913658,1727069433224,-507.5069901,0.00012991,2]
[338913659,1727069433234,-437.0373965,0.00012991,2]
[338913660,1727069433243,-366.5678029,0.00012991,2]
[338913661,1727069433252,-1438.81982396,0.00012995,2]
[338913662,1727069433261,-1000.0,0.00012996,2]
[338913663,1727069433270,-1000.0,0.00012996,2]
[338913664,1727069433280,-1000.0,0.00012996,2]
[338913665,1727069433288,-1000.0,0.00012996,2]
[338913666,1727069433297,-1000.0,0.00012996,2]
[338913667,1727069433307,-1000.0,0.00012996,2]
[338913668,1727069433317,-1000.0,0.00012996,2]
[338913669,1727069433326,-1000.0,0.00012996,2]